[Event "*** Titled Tuesday Blitz"]
[Site "Chess.com"]
[Date "2020.04.14"]
[Round "3"]
[White "grandcoach"]
[Black "Hippotaner"]
[Result "1-0"]
[WhiteElo "1860"]
[BlackElo "2250"]
[TimeControl "180+1"]
[EndTime "10:29:08 PDT"]
[Termination "grandcoach won by checkmate"]

1. e4 {[%clk 0:03:00.9]} 1... e5 {[%clk 0:02:58.2]} 2. Nf3 {[%clk 0:02:58.3]}
2... Nc6 {[%clk 0:02:58]} 3. d4 {[%clk 0:02:58.8]} 3... exd4 {[%clk 0:02:56.2]}
4. c3 {[%clk 0:02:59.3]} 4... d5 {[%clk 0:02:51.2]} 5. exd5 {[%clk 0:02:58.3]}
5... Qxd5 {[%clk 0:02:50.9]} 6. cxd4 {[%clk 0:02:58.8]} 6... Nf6 {[%clk
0:02:48.8]} 7. Nc3 {[%clk 0:02:58.3]} 7... Bb4 {[%clk 0:02:48.9]} 8. Be2 {[%clk
0:02:58.8]} 8... O-O {[%clk 0:02:44.2]} 9. O-O {[%clk 0:02:58.3]} 9... Bxc3
{[%clk 0:02:41.3]} 10. bxc3 {[%clk 0:02:58.9]} 10... Ne4 {[%clk 0:02:41.4]} 11.
c4 {[%clk 0:02:47]} 11... Qa5 {[%clk 0:02:28.8]} 12. d5 {[%clk 0:02:14.8]} 12...
Qc3 {[%clk 0:01:17.9]} 13. Rb1 {[%clk 0:02:06.4]} 13... Na5 {[%clk 0:01:04.7]}
14. Bb2 {[%clk 0:02:02.6]} 14... Qb4 {[%clk 0:00:54.9]} 15. Bxg7 {[%clk
0:01:57.6]} 15... Qe7 {[%clk 0:00:48.5]} 16. Bxf8 {[%clk 0:01:55]} 16... Qxf8
{[%clk 0:00:48.7]} 17. Qd4 {[%clk 0:01:48.7]} 17... Nd6 {[%clk 0:00:40.6]} 18.
c5 {[%clk 0:01:33.5]} 18... Nf5 {[%clk 0:00:40.6]} 19. Qa4 {[%clk 0:01:21.9]}
19... b6 {[%clk 0:00:41]} 20. d6 {[%clk 0:00:59.8]} 20... cxd6 {[%clk
0:00:27.9]} 21. cxb6 {[%clk 0:00:55.2]} 21... axb6 {[%clk 0:00:28.1]} 22. Rxb6
{[%clk 0:00:53.2]} 22... Be6 {[%clk 0:00:28.3]} 23. Nd4 {[%clk 0:00:45.8]} 23...
Nc4 {[%clk 0:00:21]} 24. Nxe6 {[%clk 0:00:44.6]} 24... Rxa4 {[%clk 0:00:20.5]}
25. Nxf8 {[%clk 0:00:41.6]} 25... Nxb6 {[%clk 0:00:20.7]} 26. Bg4 {[%clk
0:00:30.8]} 26... Nh6 {[%clk 0:00:20.2]} 27. Nd7 {[%clk 0:00:29.9]} 27... Nxg4
{[%clk 0:00:20.2]} 28. Nxb6 {[%clk 0:00:29.5]} 28... Rxa2 {[%clk 0:00:21.1]} 29.
Nd5 {[%clk 0:00:25.5]} 29... Ne5 {[%clk 0:00:20.2]} 30. Rd1 {[%clk 0:00:16.4]}
30... Kg7 {[%clk 0:00:20.3]} 31. h3 {[%clk 0:00:13.8]} 31... Nc4 {[%clk
0:00:19.9]} 32. Rd3 {[%clk 0:00:11]} 32... Rd2 {[%clk 0:00:19.7]} 33. Rg3+
{[%clk 0:00:09.6]} 33... Kf8 {[%clk 0:00:20]} 34. Nf6 {[%clk 0:00:08.9]} 34...
Ne5 {[%clk 0:00:20.1]} 35. Nxh7+ {[%clk 0:00:08.3]} 35... Ke7 {[%clk 0:00:20.3]}
36. f4 {[%clk 0:00:06.2]} 36... Rd1+ {[%clk 0:00:20]} 37. Kh2 {[%clk 0:00:05.4]}
37... Ng6 {[%clk 0:00:20.9]} 38. Ng5 {[%clk 0:00:04.9]} 38... Nxf4 {[%clk
0:00:21]} 39. Re3+ {[%clk 0:00:04.4]} 39... Ne6 {[%clk 0:00:21.1]} 40. Nxe6
{[%clk 0:00:04]} 40... fxe6 {[%clk 0:00:22]} 41. h4 {[%clk 0:00:04]} 41... d5
{[%clk 0:00:22.9]} 42. h5 {[%clk 0:00:03.6]} 42... d4 {[%clk 0:00:23.8]} 43. Re4
{[%clk 0:00:03.5]} 43... Kf6 {[%clk 0:00:23.7]} 44. Rg4 {[%clk 0:00:03.3]} 44...
d3 {[%clk 0:00:23.4]} 45. h6 {[%clk 0:00:03.5]} 45... e5 {[%clk 0:00:23.7]} 46.
h7 {[%clk 0:00:03.1]} 46... d2 {[%clk 0:00:22.6]} 47. h8=Q+ {[%clk 0:00:03]}
47... Kf5 {[%clk 0:00:23.5]} 48. Qh5+ {[%clk 0:00:02]} 48... Kf6 {[%clk
0:00:21.4]} 49. Rg6+ {[%clk 0:00:02.6]} 49... Kf7 {[%clk 0:00:21.7]} 50. Qxd1
{[%clk 0:00:03.1]} 50... Kxg6 {[%clk 0:00:22.6]} 51. Qxd2 {[%clk 0:00:03.5]}
51... Kf5 {[%clk 0:00:23.4]} 52. Qe3 {[%clk 0:00:04.2]} 52... Kf6 {[%clk
0:00:23.8]} 53. Kg3 {[%clk 0:00:04.7]} 53... Ke6 {[%clk 0:00:24.5]} 54. Kg4
{[%clk 0:00:05.1]} 54... Kf6 {[%clk 0:00:24.9]} 55. Kh5 {[%clk 0:00:04.6]} 55...
Ke6 {[%clk 0:00:25.8]} 56. Qe4 {[%clk 0:00:04.9]} 56... Kd6 {[%clk 0:00:25.9]}
57. Kg5 {[%clk 0:00:05.1]} 57... Ke6 {[%clk 0:00:26.8]} 58. Kg6 {[%clk
0:00:05.2]} 58... Ke7 {[%clk 0:00:27.7]} 59. Kf5 {[%clk 0:00:05.6]} 59... Kf8
{[%clk 0:00:28.6]} 60. Qxe5 {[%clk 0:00:06.1]} 60... Kf7 {[%clk 0:00:29.1]} 61.
Qc7+ {[%clk 0:00:06]} 61... Kf8 {[%clk 0:00:30]} 62. Kf6 {[%clk 0:00:06.2]}
62... Ke8 {[%clk 0:00:30.8]} 63. Qe7# {[%clk 0:00:06.4]} 1-0

[Event "*** Titled Tuesday Blitz"]
[Site "Chess.com"]
[Date "2020.04.14"]
[Round "3"]
[White "ClassyEl"]
[Black "Shant_Sargsyan"]
[Result "1-0"]
[WhiteElo "2714"]
[BlackElo "3038"]
[TimeControl "180+1"]
[EndTime "10:29:09 PDT"]
[Termination "ClassyEl won on time"]

1. d4 {[%clk 0:03:00.9]} 1... d5 {[%clk 0:02:58.9]} 2. Bf4 {[%clk 0:03:00.8]}
2... Nf6 {[%clk 0:02:58.1]} 3. e3 {[%clk 0:03:01.2]} 3... e6 {[%clk 0:02:58.7]}
4. Nd2 {[%clk 0:03:00.5]} 4... Bd6 {[%clk 0:02:59.2]} 5. Bg3 {[%clk 0:03:01]}
5... O-O {[%clk 0:02:59.6]} 6. Bd3 {[%clk 0:03:01.2]} 6... c5 {[%clk 0:02:59.8]}
7. c3 {[%clk 0:03:01.7]} 7... b6 {[%clk 0:02:59]} 8. Ngf3 {[%clk 0:03:01.6]}
8... Qc7 {[%clk 0:02:58.3]} 9. Ne5 {[%clk 0:03:01]} 9... Nc6 {[%clk 0:02:56.6]}
10. f4 {[%clk 0:02:59]} 10... Ne7 {[%clk 0:02:56.6]} 11. Bf2 {[%clk 0:02:58.1]}
11... Bb7 {[%clk 0:02:54.8]} 12. Qf3 {[%clk 0:02:56.6]} 12... Nd7 {[%clk
0:02:50.9]} 13. Qh3 {[%clk 0:02:47.4]} 13... f5 {[%clk 0:02:49]} 14. g4 {[%clk
0:02:37.9]} 14... c4 {[%clk 0:02:33.8]} 15. Bc2 {[%clk 0:02:35]} 15... b5 {[%clk
0:02:34]} 16. Ndf3 {[%clk 0:01:51.4]} 16... Nf6 {[%clk 0:02:34]} 17. Ng5 {[%clk
0:01:44.5]} 17... Bc8 {[%clk 0:02:18.8]} 18. gxf5 {[%clk 0:01:38.5]} 18... exf5
{[%clk 0:02:13]} 19. Rg1 {[%clk 0:01:24.4]} 19... h6 {[%clk 0:02:02.4]} 20. Ngf3
{[%clk 0:01:18.7]} 20... Ng4 {[%clk 0:02:01.6]} 21. Qg3 {[%clk 0:00:56.2]} 21...
b4 {[%clk 0:01:27.4]} 22. h3 {[%clk 0:00:52.6]} 22... bxc3 {[%clk 0:01:27.9]}
23. bxc3 {[%clk 0:00:49.2]} 23... Qa5 {[%clk 0:01:28.4]} 24. Kd2 {[%clk
0:00:43.5]} 24... Rb8 {[%clk 0:00:57]} 25. hxg4 {[%clk 0:00:40.2]} 25... Rb2
{[%clk 0:00:57.3]} 26. gxf5 {[%clk 0:00:21.6]} 26... Nxf5 {[%clk 0:00:58.2]} 27.
Qg6 {[%clk 0:00:21.6]} 27... Bb4 {[%clk 0:00:48.8]} 28. Rac1 {[%clk 0:00:14.4]}
28... Bxc3+ {[%clk 0:00:47.5]} 29. Kd1 {[%clk 0:00:14.9]} 29... Qxa2 {[%clk
0:00:38.5]} 30. Ne1 {[%clk 0:00:07.9]} 30... Bxe1 {[%clk 0:00:28.7]} 31. Rxe1
{[%clk 0:00:08.2]} 31... c3 {[%clk 0:00:18.7]} 32. Rg1 {[%clk 0:00:07.9]} 32...
Rxc2 {[%clk 0:00:19.1]} 33. Rxc2 {[%clk 0:00:07.8]} 33... Qb1+ {[%clk 0:00:19]}
34. Rc1 {[%clk 0:00:06.1]} 34... Qe4 {[%clk 0:00:19.5]} 35. Rxc3 {[%clk
0:00:05.1]} 35... Kh8 {[%clk 0:00:12.2]} 36. Rc7 {[%clk 0:00:04.4]} 36... Qb1+
{[%clk 0:00:12.3]} 37. Ke2 {[%clk 0:00:03.6]} 37... Ba6+ {[%clk 0:00:12]} 38.
Qxa6 {[%clk 0:00:02.6]} 38... Rb8 {[%clk 0:00:10.7]} 39. Rxa7 {[%clk 0:00:02.3]}
39... Rb2+ {[%clk 0:00:10.6]} 40. Kf3 {[%clk 0:00:02.8]} 40... Qe4+ {[%clk
0:00:10.8]} 41. Kg4 {[%clk 0:00:03.3]} 41... Nxd4 {[%clk 0:00:06.5]} 42. Qc8+
{[%clk 0:00:03.4]} 42... Kh7 {[%clk 0:00:06.7]} 43. Rxg7+ {[%clk 0:00:03.3]}
43... Kxg7 {[%clk 0:00:06.4]} 44. Kh5+ {[%clk 0:00:04]} 44... Kf6 {[%clk
0:00:05.6]} 45. Qf8+ {[%clk 0:00:04.2]} 45... Ke6 {[%clk 0:00:04.9]} 46. Rg6+
{[%clk 0:00:04.9]} 46... Qxg6+ {[%clk 0:00:05]} 47. Nxg6 {[%clk 0:00:03.9]}
47... Nf5 {[%clk 0:00:05.9]} 48. Qe8+ {[%clk 0:00:03.5]} 48... Kf6 {[%clk
0:00:06.4]} 49. Qe5+ {[%clk 0:00:03.4]} 49... Kf7 {[%clk 0:00:07]} 50. Qxf5+
{[%clk 0:00:04.1]} 50... Ke8 {[%clk 0:00:06.2]} 51. Qe5+ {[%clk 0:00:04.3]} 1-0

[Event "*** Titled Tuesday Blitz"]
[Site "Chess.com"]
[Date "2020.04.14"]
[Round "3"]
[White "EugeneRougon"]
[Black "LiemLe"]
[Result "0-1"]
[WhiteElo "2692"]
[BlackElo "3010"]
[TimeControl "180+1"]
[EndTime "10:29:09 PDT"]
[Termination "LiemLe won by resignation"]

1. e4 {[%clk 0:03:00.9]} 1... e5 {[%clk 0:02:59.1]} 2. Nf3 {[%clk 0:03:01]} 2...
Nc6 {[%clk 0:02:59.6]} 3. d4 {[%clk 0:03:00.5]} 3... exd4 {[%clk 0:02:59.4]} 4.
Nxd4 {[%clk 0:03:01.4]} 4... Nf6 {[%clk 0:02:59.6]} 5. Nxc6 {[%clk 0:03:01.8]}
5... bxc6 {[%clk 0:03:00.5]} 6. e5 {[%clk 0:03:02.2]} 6... Qe7 {[%clk
0:03:00.3]} 7. Qe2 {[%clk 0:03:02.4]} 7... Nd5 {[%clk 0:03:00.8]} 8. c4 {[%clk
0:03:02.7]} 8... Nb6 {[%clk 0:03:01.4]} 9. b3 {[%clk 0:02:54]} 9... a5 {[%clk
0:02:57.4]} 10. a4 {[%clk 0:02:25.2]} 10... Qe6 {[%clk 0:02:56]} 11. Bb2 {[%clk
0:02:22.8]} 11... Bb4+ {[%clk 0:02:55.6]} 12. Nd2 {[%clk 0:02:21.4]} 12... O-O
{[%clk 0:02:52.5]} 13. O-O-O {[%clk 0:02:17.5]} 13... d5 {[%clk 0:02:42.7]} 14.
exd6 {[%clk 0:02:12.5]} 14... cxd6 {[%clk 0:02:43.6]} 15. Nf3 {[%clk 0:02:00.7]}
15... Qh6+ {[%clk 0:02:35.7]} 16. Qe3 {[%clk 0:01:51.6]} 16... Qxe3+ {[%clk
0:02:33]} 17. fxe3 {[%clk 0:01:52.5]} 17... d5 {[%clk 0:02:27.4]} 18. cxd5
{[%clk 0:01:23.4]} 18... Nxd5 {[%clk 0:02:28.3]} 19. Bd4 {[%clk 0:01:12.6]}
19... Re8 {[%clk 0:02:21.4]} 20. Bc4 {[%clk 0:01:12.6]} 20... Nxe3 {[%clk
0:02:15.2]} 21. Rde1 {[%clk 0:00:54.2]} 21... Ba3+ {[%clk 0:02:10.4]} 22. Bb2
{[%clk 0:00:48.2]} 22... Bxb2+ {[%clk 0:02:10]} 23. Kxb2 {[%clk 0:00:49.1]}
23... Nxc4+ {[%clk 0:02:10.3]} 24. bxc4 {[%clk 0:00:48.4]} 24... Be6 {[%clk
0:02:08.5]} 25. Kc3 {[%clk 0:00:41]} 25... Rab8 {[%clk 0:02:04.9]} 26. Rb1
{[%clk 0:00:24.6]} 26... Kf8 {[%clk 0:01:52.6]} 27. Nd4 {[%clk 0:00:23.2]} 27...
Bd7 {[%clk 0:01:51.5]} 28. c5 {[%clk 0:00:19.2]} 28... Re3+ {[%clk 0:01:50]} 29.
Kc4 {[%clk 0:00:17.4]} 29... Rxb1 {[%clk 0:01:44.1]} 30. Rxb1 {[%clk 0:00:17]}
30... Ra3 {[%clk 0:01:45]} 31. Rb8+ {[%clk 0:00:11.1]} 31... Ke7 {[%clk
0:01:44.6]} 32. Rb7 {[%clk 0:00:11]} 32... Rxa4+ {[%clk 0:01:44.9]} 33. Kc3
{[%clk 0:00:11.4]} 33... Kd8 {[%clk 0:01:45.3]} 34. Rb8+ {[%clk 0:00:10.8]}
34... Kc7 {[%clk 0:01:41.5]} 35. Rf8 {[%clk 0:00:11]} 35... Ra3+ {[%clk
0:01:38.7]} 36. Kc4 {[%clk 0:00:11.2]} 36... Ra4+ {[%clk 0:01:36]} 37. Kc3
{[%clk 0:00:11.4]} 37... Ra2 {[%clk 0:01:35]} 38. Rxf7 {[%clk 0:00:08.2]} 38...
Rxg2 {[%clk 0:01:34.8]} 39. Ne6+ {[%clk 0:00:08.1]} 39... Kc8 {[%clk 0:01:35.2]}
40. Rf8+ {[%clk 0:00:08.5]} 40... Kb7 {[%clk 0:01:35.4]} 41. Rf7 {[%clk
0:00:09]} 41... Kc8 {[%clk 0:01:33.8]} 42. Rf8+ {[%clk 0:00:09.3]} 42... Be8
{[%clk 0:01:34.3]} 43. Rxe8+ {[%clk 0:00:09.3]} 43... Kd7 {[%clk 0:01:34.6]} 44.
Nxg7 {[%clk 0:00:08.4]} 44... Rxg7 {[%clk 0:01:35.5]} 45. Ra8 {[%clk 0:00:08.9]}
45... Ke6 {[%clk 0:01:31.3]} 46. Rxa5 {[%clk 0:00:08.7]} 46... Rg2 {[%clk
0:01:31.2]} 47. Ra7 {[%clk 0:00:08.2]} 47... Rxh2 {[%clk 0:01:31]} 48. Rg7
{[%clk 0:00:07.8]} 48... Rh5 {[%clk 0:01:24.4]} 49. Kd3 {[%clk 0:00:08.2]} 49...
Kd5 {[%clk 0:01:23.2]} 50. Ra7 {[%clk 0:00:06.1]} 50... Rh3+ {[%clk 0:01:22.4]}
51. Ke2 {[%clk 0:00:07]} 51... Kxc5 {[%clk 0:01:23.2]} 52. Rc7 {[%clk
0:00:06.7]} 52... Kd5 {[%clk 0:01:21.7]} 53. Rc8 {[%clk 0:00:07]} 53... c5
{[%clk 0:01:22.1]} 54. Kd2 {[%clk 0:00:07.2]} 54... Kd4 {[%clk 0:01:22.2]} 55.
Kc2 {[%clk 0:00:06.8]} 55... Kc4 {[%clk 0:01:20.1]} 56. Kb2 {[%clk 0:00:06.5]}
56... Rh2+ {[%clk 0:01:20.6]} 57. Kb1 {[%clk 0:00:07.3]} 57... Kb4 {[%clk
0:01:19.9]} 58. Rg8 {[%clk 0:00:07.1]} 58... c4 {[%clk 0:01:19.9]} 59. Rg3
{[%clk 0:00:08]} 59... Re2 {[%clk 0:01:17]} 60. Rh3 {[%clk 0:00:07.4]} 60... Re7
{[%clk 0:01:14.3]} 61. Kc2 {[%clk 0:00:07.5]} 61... Ra7 {[%clk 0:01:13.5]} 62.
Kb2 {[%clk 0:00:07.2]} 62... Rc7 {[%clk 0:01:11.2]} 63. Kc2 {[%clk 0:00:07.2]}
63... Kc5 {[%clk 0:01:11.6]} 64. Kc3 {[%clk 0:00:07.1]} 64... Kd5 {[%clk
0:01:12]} 65. Rh6 {[%clk 0:00:07.4]} 65... Ke5 {[%clk 0:01:12.2]} 66. Rh1 {[%clk
0:00:05.8]} 66... Kf4 {[%clk 0:01:12.4]} 67. Rf1+ {[%clk 0:00:05.8]} 67... Kg3
{[%clk 0:01:12.5]} 68. Rh1 {[%clk 0:00:06.3]} 68... Kg2 {[%clk 0:01:10.9]} 69.
Rh6 {[%clk 0:00:06.4]} 69... Kf2 {[%clk 0:01:10.6]} 70. Rh5 {[%clk 0:00:06.7]}
70... Kf3 {[%clk 0:01:10.3]} 71. Rh6 {[%clk 0:00:07.2]} 71... Kg4 {[%clk
0:01:10.6]} 72. Rh1 {[%clk 0:00:07.4]} 72... h5 {[%clk 0:01:11.5]} 73. Rg1+
{[%clk 0:00:06.7]} 73... Kf3 {[%clk 0:01:11.9]} 74. Rh1 {[%clk 0:00:07.6]} 74...
Rc5 {[%clk 0:01:11.7]} 75. Kd4 {[%clk 0:00:06.9]} 75... Rg5 {[%clk 0:01:09.8]}
76. Kxc4 {[%clk 0:00:07.3]} 76... Kg2 {[%clk 0:01:10]} 77. Ra1 {[%clk
0:00:07.4]} 77... h4 {[%clk 0:01:09.9]} 78. Ra2+ {[%clk 0:00:06.5]} 78... Kg3
{[%clk 0:01:09.8]} 79. Ra8 {[%clk 0:00:07.4]} 79... h3 {[%clk 0:01:09.6]} 80.
Rh8 {[%clk 0:00:07.9]} 80... h2 {[%clk 0:01:08.9]} 81. Kd3 {[%clk 0:00:08.8]}
0-1

[Event "*** Titled Tuesday Blitz"]
[Site "Chess.com"]
[Date "2020.04.14"]
[Round "3"]
[White "Fighter008"]
[Black "frankshar"]
[Result "0-1"]
[WhiteElo "2514"]
[BlackElo "2263"]
[TimeControl "180+1"]
[EndTime "10:29:09 PDT"]
[Termination "frankshar won by checkmate"]

1. e4 {[%clk 0:03:00.9]} 1... c6 {[%clk 0:02:53.9]} 2. d4 {[%clk 0:02:58.6]}
2... d5 {[%clk 0:02:54.8]} 3. e5 {[%clk 0:02:58.4]} 3... Bf5 {[%clk 0:02:54.6]}
4. Be3 {[%clk 0:02:58.4]} 4... Qb6 {[%clk 0:02:49.7]} 5. Qc1 {[%clk 0:02:57.4]}
5... e6 {[%clk 0:02:48.1]} 6. c4 {[%clk 0:02:57.2]} 6... dxc4 {[%clk 0:02:42.4]}
7. Bxc4 {[%clk 0:02:56]} 7... Bb4+ {[%clk 0:02:35.8]} 8. Nc3 {[%clk 0:02:55.2]}
8... Qc7 {[%clk 0:02:32.8]} 9. Ne2 {[%clk 0:02:52.7]} 9... Nd7 {[%clk
0:02:31.7]} 10. O-O {[%clk 0:02:52.1]} 10... Ne7 {[%clk 0:02:30.9]} 11. Ng3
{[%clk 0:02:50.1]} 11... O-O {[%clk 0:02:25.5]} 12. a3 {[%clk 0:02:48.1]} 12...
Bxc3 {[%clk 0:02:24.8]} 13. bxc3 {[%clk 0:02:47.9]} 13... b5 {[%clk 0:02:20.7]}
14. Be2 {[%clk 0:02:41.5]} 14... Nb6 {[%clk 0:02:19.6]} 15. f4 {[%clk
0:02:32.9]} 15... Rfd8 {[%clk 0:02:15.6]} 16. Nh1 {[%clk 0:02:28.4]} 16... Be4
{[%clk 0:02:11.6]} 17. Nf2 {[%clk 0:02:27.8]} 17... Bd5 {[%clk 0:02:10.7]} 18.
Nd3 {[%clk 0:02:15.7]} 18... Bc4 {[%clk 0:02:09.1]} 19. g4 {[%clk 0:02:09.3]}
19... c5 {[%clk 0:01:55.7]} 20. f5 {[%clk 0:02:02.1]} 20... cxd4 {[%clk
0:01:51.1]} 21. cxd4 {[%clk 0:01:59.8]} 21... Ned5 {[%clk 0:01:47.9]} 22. f6
{[%clk 0:01:41.2]} 22... Bxd3 {[%clk 0:01:44.7]} 23. Bxd3 {[%clk 0:01:39.6]}
23... Qxc1 {[%clk 0:01:42.5]} 24. Bxc1 {[%clk 0:01:40.5]} 24... g6 {[%clk
0:01:37]} 25. Bxb5 {[%clk 0:01:35.4]} 25... Nc3 {[%clk 0:01:35]} 26. Bc6 {[%clk
0:01:30.6]} 26... Rac8 {[%clk 0:01:33.1]} 27. Bf3 {[%clk 0:01:28.8]} 27... Rxd4
{[%clk 0:01:27.3]} 28. h4 {[%clk 0:01:27.4]} 28... Nc4 {[%clk 0:01:17.2]} 29.
Re1 {[%clk 0:01:18.7]} 29... Rd3 {[%clk 0:01:03.7]} 30. Bg2 {[%clk 0:01:09]}
30... Rc5 {[%clk 0:00:51.7]} 31. Bf4 {[%clk 0:01:06.3]} 31... Nd5 {[%clk
0:00:47.7]} 32. Bh2 {[%clk 0:00:59.2]} 32... Nce3 {[%clk 0:00:45]} 33. Bf3
{[%clk 0:00:55.5]} 33... Nc2 {[%clk 0:00:40.2]} 34. Rab1 {[%clk 0:00:53.1]}
34... Rc8 {[%clk 0:00:22.2]} 35. Rf1 {[%clk 0:00:47.2]} 35... Nce3 {[%clk
0:00:12.9]} 36. Rf2 {[%clk 0:00:47.2]} 36... Rxa3 {[%clk 0:00:12.4]} 37. h5
{[%clk 0:00:44.1]} 37... a5 {[%clk 0:00:11.2]} 38. hxg6 {[%clk 0:00:44]} 38...
hxg6 {[%clk 0:00:12.1]} 39. Rfb2 {[%clk 0:00:44]} 39... Rd3 {[%clk 0:00:11.2]}
40. Rb8 {[%clk 0:00:42.9]} 40... Rc3 {[%clk 0:00:11.4]} 41. R1b7 {[%clk
0:00:28.4]} 41... a4 {[%clk 0:00:10.6]} 42. Rxc8+ {[%clk 0:00:25.3]} 42... Rxc8
{[%clk 0:00:11.4]} 43. Ra7 {[%clk 0:00:26]} 43... Nc3 {[%clk 0:00:07.6]} 44. Bc6
{[%clk 0:00:23.4]} 44... Rxc6 {[%clk 0:00:06.2]} 45. Ra8+ {[%clk 0:00:20.9]}
45... Kh7 {[%clk 0:00:06.5]} 46. Bf4 {[%clk 0:00:20.5]} 46... Nxg4 {[%clk
0:00:06.3]} 47. Ra7 {[%clk 0:00:17.2]} 47... Ne2+ {[%clk 0:00:06.3]} 48. Kg2
{[%clk 0:00:14.5]} 48... Nxf4+ {[%clk 0:00:07.2]} 49. Kf3 {[%clk 0:00:14.9]}
49... Nh6 {[%clk 0:00:07.2]} 50. Kxf4 {[%clk 0:00:15.2]} 50... Rc4+ {[%clk
0:00:07.4]} 51. Kg5 {[%clk 0:00:14.5]} 51... Rg4# {[%clk 0:00:07]} 0-1

[Event "*** Titled Tuesday Blitz"]
[Site "Chess.com"]
[Date "2020.04.14"]
[Round "3"]
[White "farzadbfd"]
[Black "davidkalashian"]
[Result "1-0"]
[WhiteElo "2747"]
[BlackElo "2511"]
[TimeControl "180+1"]
[EndTime "10:29:10 PDT"]
[Termination "farzadbfd won by checkmate"]

1. e4 {[%clk 0:03:00.9]} 1... c6 {[%clk 0:02:59.4]} 2. d4 {[%clk 0:03:00.4]}
2... g6 {[%clk 0:03:00.3]} 3. g3 {[%clk 0:02:59.8]} 3... Bg7 {[%clk 0:03:00.5]}
4. Bg2 {[%clk 0:03:00.5]} 4... d6 {[%clk 0:03:01]} 5. Ne2 {[%clk 0:03:00.7]}
5... Nf6 {[%clk 0:03:01.6]} 6. O-O {[%clk 0:03:01.2]} 6... O-O {[%clk
0:03:02.4]} 7. a4 {[%clk 0:03:00.9]} 7... Nbd7 {[%clk 0:03:02.8]} 8. c4 {[%clk
0:03:01]} 8... e5 {[%clk 0:03:03.1]} 9. d5 {[%clk 0:02:58.1]} 9... cxd5 {[%clk
0:03:03]} 10. exd5 {[%clk 0:02:56.6]} 10... Ne8 {[%clk 0:03:01.6]} 11. Nbc3
{[%clk 0:02:55.4]} 11... f5 {[%clk 0:03:01.1]} 12. f4 {[%clk 0:02:55.5]} 12...
Nef6 {[%clk 0:02:45.2]} 13. Kh1 {[%clk 0:02:45.1]} 13... a5 {[%clk 0:02:35.1]}
14. Be3 {[%clk 0:02:42.5]} 14... b6 {[%clk 0:02:31.1]} 15. Nb5 {[%clk
0:02:40.5]} 15... Nc5 {[%clk 0:02:16.9]} 16. Nc1 {[%clk 0:02:27]} 16... Ba6
{[%clk 0:02:14.1]} 17. Nd3 {[%clk 0:02:25.6]} 17... Bxb5 {[%clk 0:02:12.9]} 18.
axb5 {[%clk 0:02:26.5]} 18... Nfd7 {[%clk 0:02:06.9]} 19. Nxc5 {[%clk
0:02:24.1]} 19... Nxc5 {[%clk 0:02:06.1]} 20. Qc2 {[%clk 0:02:08.2]} 20... e4
{[%clk 0:02:05.3]} 21. Bxc5 {[%clk 0:01:50.7]} 21... dxc5 {[%clk 0:02:01.9]} 22.
Rad1 {[%clk 0:01:47.2]} 22... Qd6 {[%clk 0:02:02.2]} 23. b3 {[%clk 0:01:45.8]}
23... Rad8 {[%clk 0:02:02.2]} 24. Rfe1 {[%clk 0:01:44]} 24... Bd4 {[%clk
0:02:02.3]} 25. Re2 {[%clk 0:01:43.8]} 25... Qf6 {[%clk 0:02:02.6]} 26. Rf1
{[%clk 0:01:40.7]} 26... Kf7 {[%clk 0:02:00]} 27. Rd1 {[%clk 0:01:29.5]} 27...
Kg7 {[%clk 0:01:58.3]} 28. Rf1 {[%clk 0:01:29.2]} 28... Ra8 {[%clk 0:01:57.6]}
29. Qd1 {[%clk 0:01:24.5]} 29... Rf7 {[%clk 0:01:56.6]} 30. Ra2 {[%clk
0:01:24.7]} 30... h5 {[%clk 0:01:55.4]} 31. h3 {[%clk 0:01:19.8]} 31... Rfa7
{[%clk 0:01:53.6]} 32. Kh2 {[%clk 0:00:53.5]} 32... Re7 {[%clk 0:01:51.2]} 33.
Qe2 {[%clk 0:00:50]} 33... Rae8 {[%clk 0:01:51.3]} 34. Qd1 {[%clk 0:00:49.2]}
34... e3 {[%clk 0:01:50.1]} 35. Re2 {[%clk 0:00:49.1]} 35... g5 {[%clk
0:01:40.7]} 36. Qd3 {[%clk 0:00:28.6]} 36... h4 {[%clk 0:01:29.2]} 37. fxg5
{[%clk 0:00:24.3]} 37... Qxg5 {[%clk 0:01:26.2]} 38. Qxf5 {[%clk 0:00:19.3]}
38... hxg3+ {[%clk 0:01:09.9]} 39. Kh1 {[%clk 0:00:19.4]} 39... Qxf5 {[%clk
0:01:09.2]} 40. Rxf5 {[%clk 0:00:20.3]} 40... Rf7 {[%clk 0:01:03.7]} 41. Rf3
{[%clk 0:00:20.2]} 41... Rxf3 {[%clk 0:00:58.7]} 42. Bxf3 {[%clk 0:00:21.1]}
42... Kf6 {[%clk 0:00:56.3]} 43. Kg2 {[%clk 0:00:21.6]} 43... Rg8 {[%clk
0:00:56.6]} 44. Bg4 {[%clk 0:00:22.1]} 44... Ke5 {[%clk 0:00:47.1]} 45. Kxg3
{[%clk 0:00:22.5]} 45... Ra8 {[%clk 0:00:47.4]} 46. Ra2 {[%clk 0:00:19.3]} 46...
Ke4 {[%clk 0:00:43.9]} 47. d6 {[%clk 0:00:19.3]} 47... Be5+ {[%clk 0:00:43]} 48.
Kg2 {[%clk 0:00:18.6]} 48... Kd4 {[%clk 0:00:40.9]} 49. d7 {[%clk 0:00:18.2]}
49... Bf6 {[%clk 0:00:41.1]} 50. Re2 {[%clk 0:00:16]} 50... Kd3 {[%clk
0:00:39.1]} 51. Re1 {[%clk 0:00:15.9]} 51... Bg5 {[%clk 0:00:38.2]} 52. Rd1+
{[%clk 0:00:15.6]} 52... Kc3 {[%clk 0:00:38.4]} 53. Rd5 {[%clk 0:00:16.1]} 53...
Bh4 {[%clk 0:00:37.9]} 54. Bd1 {[%clk 0:00:16]} 54... a4 {[%clk 0:00:36.1]} 55.
bxa4 {[%clk 0:00:15.8]} 55... Kxc4 {[%clk 0:00:37]} 56. Re5 {[%clk 0:00:15]}
56... Rd8 {[%clk 0:00:34.7]} 57. Re4+ {[%clk 0:00:14.9]} 57... Kd3 {[%clk
0:00:34.6]} 58. Rxh4 {[%clk 0:00:15.1]} 58... Rxd7 {[%clk 0:00:35]} 59. Rf4
{[%clk 0:00:14.9]} 59... Rg7+ {[%clk 0:00:34.7]} 60. Kf3 {[%clk 0:00:15.3]}
60... c4 {[%clk 0:00:32.4]} 61. Be2+ {[%clk 0:00:15.4]} 61... Kd2 {[%clk
0:00:31.4]} 62. Rd4+ {[%clk 0:00:15.9]} 62... Ke1 {[%clk 0:00:28.6]} 63. Rd1#
{[%clk 0:00:15.9]} 1-0